Cogmind - Beta 13 @@@ ROGUE MODE // 2024.04.09 @ 02:34:39 Player: nixie Result: Self-destructed Performance ------------- Evolutions (1) 500 Regions Visited (2) 400 Robots Destroyed (29) 145 Value Destroyed (471) 471 Prototype IDs (3) 60 Alien Tech Used (0) 0 Bonus (0) 0 TOTAL SCORE: 1576 Bonus ------- None Cogmind --------- Core Integrity 215/400 Matter 295/300 Energy 250/250 System Corruption 2% Temperature Cool (0) Movement Core (1550) Ox30 Location -9/Materials Parts ------- > --- POWER (1) -------- Ion Engine > --- PROPULSION (2) --- (None) > --- UTILITY (4) ------ Huge Storage Unit Visual Processing Unit Terrain Scanner Hardened Light Armor Plating > --- WEAPON (2) ------- Datajack > --- INVENTORY (25) --- Improved Heat Sink Peak State ------------ > --- POWER ------------ Light Nuclear Core > --- PROPULSION ------- Light Treads Light Treads > --- UTILITY ---------- Improved Heat Sink Large Storage Unit Visual Processing Unit Terrain Scanner > --- WEAPON ----------- Improved Medium Laser Beam Cannon > --- INVENTORY -------- Grenade Launcher Datajack [Rating: 16] Favorites ----------- Power Light Nuclear Core Engine Ion Engine Power Core Light Nuclear Core Propulsion Light Treads Treads Light Treads Utility Large Storage Unit Device Improved Heat Sink Storage Large Storage Unit Processor Visual Processing Unit Protection Hardened Light Armor Plating Weapon Light Assault Rifle Energy Gun EM Pulse Gun Energy Cannon Beam Cannon Ballistic Gun Light Assault Rifle Launcher Grenade Launcher Special Melee Weapon Datajack Build | -11 -10 -9 ------- Run | Yrd Mat Mat Slots Evolved 2 | . . 2 Power . | . . . Propulsion . | . . . Utility 2 | . . 2 Weapon . | . . . Parts Attached 24 | 7 8 9 Power 3 | 1 1 1 Engine 2 | 1 . 1 Core 1 | . 1 . Reactor . | . . . Propulsion 5 | 2 2 1 Treads 5 | 2 2 1 Leg . | . . . Wheel . | . . . Hover . | . . . Flight . | . . . Utility 7 | 1 2 4 Device 2 | . 1 1 Storage 3 | 1 1 1 Processor 1 | . . 1 Hackware . | . . . Protection 1 | . . 1 Artifact . | . . . Weapon 9 | 3 3 3 Energy Gun 2 | 1 . 1 Energy Cannon 1 | . 1 . Ballistic Gun 3 | 2 1 . Ballistic Cannon . | . . . Launcher 2 | . 1 1 Special Weapon . | . . . Impact Weapon . | . . . Slashing Weapon . | . . . Piercing Weapon . | . . . Special Melee Weapon 1 | . . 1 Unidentified Prototypes 1 | . . 1 Parts Lost 6 | . . 6 Power 1 | . . 1 Propulsion 3 | . . 3 Utility . | . . . Weapon 2 | . . 2 Highest Loss Streak 3 | . . 3 To Critical Strikes . | . . . Average Slot Usage (%) 89 | . 89 89 Engine 5 | . 7 4 Core 6 | . 6 6 Treads 24 | . 26 21 Device 11 | . 6 17 Storage 12 | . 14 11 Processor 4 | . . 11 Protection 1 | . . 4 Energy Cannon 4 | . . 10 Ballistic Gun 14 | . 26 . Launcher 1 | . . 3 Naked Turns . | . . . Heaviest Build 94 | 13 32 94 Greatest Support 40 | 40 40 40 Greatest Overweight (x) 9 | . 9 2 Average Overweight (x) . | . . . Largest Inventory Capacity 25 | 8 15 25 Average Capacity 16 | 7 14 20 Most Carried 5 | 4 5 5 Average Carried 1 | . . 1 Final Capacity 25 | 8 15 25 Final Carried 3 | . 3 1 Class Distribution -------------------- 90% | Mutant 9% | Scavenger-Mutant Dominant Class ---------------- Mutant | -10/Materials Mutant | -9/Materials Resources | -11 -10 -9 ----------- Run | Yrd Mat Mat Matter Collected 611 | 192 186 233 Remotely . | . . . Salvage Created 708 | 9 205 494 Parts 55 | 2 6 47 Haulers Intercepted 1 | . . 1 Recyclers Shooed 4 | . 3 1 Parts Field Recycled . | . . . Retrieved Matter . | . . . Parts Self-Destructed . | . . . Prevented . | . . . Kills | -11 -10 -9 ------- Run | Yrd Mat Mat Combat Hostiles Destroyed 14 | . 5 9 Guns 5 | . 5 . Cannons 8 | . . 8 AOE 1 | . . 1 Classes Destroyed 9 | 1 3 5 Worker 6 | 1 1 4 Builder 2 | . . 2 Tunneler 1 | . . 1 Hauler 1 | . . 1 Recycler 2 | . 1 1 Watcher 3 | . . 3 Swarmer 6 | . 3 3 Grunt 7 | . 2 5 Sentry 1 | . . 1 Best Kill Streak 9 | 1 3 9 Combat Bots Only 3 | . 3 3 Max Kills in Single Turn 2 | 1 1 2 Gunslinging . | . . . Exploded 1 | . . 1 Melee . | . . . Uniques/NPCs Destroyed . | . . . Combat | -11 -10 -9 -------- Run | Yrd Mat Mat Hostile Shots Fired 132 | . 49 83 Missed 35 | . 11 24 Damage Taken 1302 | . 519 783 Core 336 | . 151 185 Absorbed by Shields . | . . . Regen/Repaired (Parts) 49 | . 49 . Core Remaining (%) 69 | 100 39 . Volleys Fired 94 | . 50 44 Largest 2 | . 2 2 Hottest 90 | . 40 90 Shots Fired 153 | . 100 53 Gun 100 | . 100 . Cannon 45 | . . 45 Launcher 8 | . . 8 Special . | . . . Kinetic 100 | . 100 . Thermal 45 | . . 45 Explosive 8 | . . 8 Electromagnetic . | . . . Robot Hit Streak 12 | . 12 10 Robot Miss Streak 7 | . 6 7 Penetration Max . | . . . Secondary Targets . | . . . Shots Hit Robots 89 | . 57 32 Core Hits 41 | 1 14 26 Critical Kills . | . . . Critical Parts Destroyed . | . . . Critical Strikes . | . . . Melee Attacks 1 | . . 1 Impact . | . . . Slashing . | . . . Piercing . | . . . Sneak Attacks . | . . . Combat Hostiles . | . . . Follow-up Attacks . | . . . Damage Inflicted 1501 | 1 478 1022 Guns 471 | . 471 . Cannons 454 | . . 454 Explosions 560 | . . 560 Melee . | . . . Ramming 16 | 1 7 8 Kinetic 471 | . 471 . Thermal 561 | . . 561 Explosive 453 | . . 453 Electromagnetic . | . . . Impact . | . . . Slashing . | . . . Piercing . | . . . Highest Corruption 2 | . . 2 Average Corruption 2 | . . 2 Corruption Purged . | . . . Corruption Blocked . | . . . Effects 9 | . . 9 Message Errors 3 | . . 3 Matter Fused 2 | . . 2 Heat Flow Errors 1 | . . 1 Energy Discharges 2 | . . 2 Misfires 1 | . . 1 Overload Shots . | . . . Overflow Damage 15 | . . 15 Projectiles . | . . . Explosions 15 | . . 15 Melee . | . . . Knockbacks . | . . . Impact . | . . . Kinetic . | . . . Secondary . | . . . Self-Inflicted Damage 160 | . . 160 Shots 4 | . . 4 Rammed 5 | . 3 2 Targets Rammed 7 | 1 4 2 Kicked . | . . . Crushed 2 | 1 1 . Highest Temperature 216 | . 39 216 Average Temperature 58 | . 21 75 Received Heat Transfer 420 | . 225 195 Siege Activations . | . . . Robots Corrupted . | . . . Combat Hostiles . | . . . Parts Fried . | . . . Impact Corruptions . | . . . Robots Melted . | . . . Combat Hostiles . | . . . Parts Melted 1 | . . 1 Heat Transferred 1012 | . . 1012 Parts Sabotaged . | . . . Parts Stolen . | . . . Parts Stripped . | . . . Power Chain Reactions . | . . . Alert | -11 -10 -9 ------- Run | Yrd Mat Mat Peak Influence 373 | . 158 373 Initial 15 | . 3 15 Average 123 | . 65 222 Maximum Alert Level 1 | . . 1 Low Security (%) 73 | 100 100 34 Level 1 26 | . . 65 Level 2 . | . . . Level 3 . | . . . Level 4 . | . . . Level 5 . | . . . High Security . | . . . Max Security . | . . . Squads Dispatched 3 | . 2 1 Investigation . | . . . Extermination . | . . . Reinforcement 3 | . 2 1 Assault . | . . . Garrison . | . . . Intercept . | . . . Searches Triggered . | . . . Construction Impeded . | . . . Haulers Reinforced . | . . . Active Scanning Responses . | . . . Cargo Convoy Interrupts . | . . . Stealth | -11 -10 -9 --------- Run | Yrd Mat Mat Distress Signals 1 | . . 1 Communications Jammed . | . . . Distress Signals . | . . . Times Spotted 33 | . 12 21 Peak Tracking Total 5 | . 3 5 Tactical Retreats 2 | . . 2 Traps | -11 -10 -9 ------- Run | Yrd Mat Mat Traps Triggered 2 | . 1 1 Indirectly . | . . . Trap Hack Attempts . | . . . Triggered . | . . . Disarmed . | . . . Reprogrammed . | . . . Reused . | . . . Traps Extracted . | . . . Installed . | . . . Triggered . | . . . Machines | -11 -10 -9 ---------- Run | Yrd Mat Mat Machines Disabled 3 | . . 3 Max in Single Turn 2 | . . 2 Machines Repaired . | . . . Machines Dismantled . | . . . Machines Sabotaged . | . . . Overloaded Fab Kills . | . . . Hacking | -11 -10 -9 --------- Run | Yrd Mat Mat Machines Accessed 4 | . 3 1 Terminals 3 | . 2 1 Fabricators . | . . . Repair Stations 1 | . 1 . Recycling Units . | . . . Scanalyzers . | . . . Garrison Access . | . . . Total Hacks 11 | . 7 4 Successful 5 | . 4 1 Failed 6 | . 3 3 Catastrophic 1 | . . 1 Database Lockouts . | . . . Manual . | . . . Terminals 8 | . 4 4 Fabricators . | . . . Repair Stations 3 | . 3 . Recycling Units . | . . . Scanalyzers . | . . . Garrison Access . | . . . Terminal Hacks 2 | . 1 1 Record 1 | . . 1 Prototype ID Bank 1 | . 1 . Fabricator Hacks . | . . . Repair Station Hacks 3 | . 3 . Scan Component 2 | . 2 . Repair 1 | . 1 . Recycling Unit Hacks . | . . . Scanalyzer . | . . . Garrison Access Hacks . | . . . Unauthorized Hacks . | . . . Terminals . | . . . Fabricators . | . . . Repair Stations . | . . . Recycling Units . | . . . Scanalyzers . | . . . Garrison Access . | . . . Data Cores Recovered . | . . . Used . | . . . Hacking Detections 4 | . 3 1 Full Trace Events 1 | . 1 . Feedback Events . | . . . Feedback Blocked . | . . . Robot Schematics Acquired . | . . . Robots Built . | . . . Authchips . | . . . Time . | . . . Total Robot Build Rating . | . . . Part Schematics Acquired . | . . . Parts Built . | . . . Authchips . | . . . Time . | . . . Total Part Build Rating . | . . . Parts Repaired 1 | . 1 . Time 26 | . 26 . Parts Recycled . | . . . Recycled Matter . | . . . Retrieved Matter . | . . . Retrieved Components . | . . . Parts Scanalyzed . | . . . Part Schematics Acquired . | . . . Parts Damaged . | . . . Bothacking | -11 -10 -9 ------------ Run | Yrd Mat Mat Used RIF Installer . | . . . Robots Hacked 1 | . . 1 Non-combat . | . . . Combat 1 | . . 1 Robot Hacks Applied 1 | . . 1 parse_system 1 | . . 1 Relay Couplers Released . | . . . Fabnet Peak Effective % . | . . . Robots Rewired . | . . . Allies Hacked . | . . . Hacks Repelled . | . . . Allies | -11 -10 -9 -------- Run | Yrd Mat Mat Total Allies . | . . . Largest Group . | . . . Highest-Rated Group . | . . . Highest-Rated Ally . | . . . Total Orders . | . . . Ally Attacks . | . . . Total Damage . | . . . Kills . | . . . Allies Corrupted . | . . . Allies Melted . | . . . Intel | -11 -10 -9 ------- Run | Yrd Mat Mat Robot Analysis Total . | . . . Derelict Logs Recovered . | . . . Drone Launches . | . . . Drone Recoveries . | . . . Exploration | -11 -10 -9 ------------- Run | Yrd Mat Mat Turns Passed 1356 | 109 698 549 Spaces Moved 577 | 73 313 191 Core 25 | 21 4 . Treads 552 | 52 309 191 Legs . | . . . Wheels . | . . . Hover . | . . . Flight . | . . . Fastest Speed 50 | 50 160 160 Average Speed 177 | 128 164 219 Slowest Speed 500 | 160 500 320 Overloaded Moves . | . . . Propulsion Burnouts . | . . . Robots Hopped . | . . . Cave-ins Triggered . | . . . Exploration Rate (%) 23 | 5 49 16 Regions Visited 2 Branch Regions . Pre-discovered Areas . | . . . Known Exits Taken . | . . . Unknown Exits Taken 2 | 1 1 . Scrap Searched . | . . . Spaces Dug . | . . . Terrain Destroyed 91 | . . 91 Melee . | . . . Projectile . | . . . AOE 91 | . . 91 Terrain Rammed . | . . . Walls Destroyed . | . . . Machines Disabled . | . . . Actions | -11 -10 -9 --------- Run | Yrd Mat Mat Total 774 | 89 418 267 Wait 26 | . 26 . Move 576 | 73 312 191 Hop . | . . . Pick Up 26 | 7 9 10 Fast Attach . | . . . Attach 22 | 7 7 8 Detach 9 | 1 5 3 Swap 2 | . 1 1 Drop 12 | 1 4 7 Fire 94 | . 50 44 Melee 1 | . . 1 Ram . | . . . Kick . | . . . Crush 6 | . 4 2 Escape Stasis . | . . . Rewire . | . . . Trap . | . . . Miscellaneous . | . . . Route ------- -11/Scrapyard -10/Materials -9/Materials History --------- Turn | Location | Event 6 | -11/Scrapyard | Discovered new exit (range 15) 110 | -11/Scrapyard | Entered Materials 302 | -10/Materials | Build established: Mutant 302 | -10/Materials | Core integrity fell below 50% 560 | -10/Materials | Repaired Lgt. Assault Rifle 756 | -10/Materials | Discovered new exit (range 12) 808 | -10/Materials | Entered another Materials area 808 | -9/Materials | Evolved 2 slots: Utility x2 1357 | -9/Materials | Self-destructed Last Messages --------------- K-01 Serf collects debris. S-10 Pest destroyed. K-01 Serf collects debris. U-05 Engineer builds a Door. K-01 Serf destroyed. K-01 Serf collects debris. K-01 Serf destroyed. POOHZ6MB8NF7ZV:S|X&UHW Critical hit (Burn: +37). Beam Cannon destroyed. R-06 Scavenger collects Lgt. Ion Engine. U-05 Engineer builds a Door. R-06 Scavenger collects Lgt. Ion Engine. Slammed into R-06 Scavenger. Lgt. Treads destroyed. Slammed into Y-45 Defender. Jacked Y-45 Defender... >>parse_system Reading system data... Lgt. Treads destroyed. Map ----- +----------------------------------------------------+ | ????????????????????????????????????????#"T + | | ????????????????????????????????????????#"" [ # | | ???????????????????????????????????????## # | | ????????????????????????????????????????# # | | ????????????????????????????????"???????######## | | ??????????????????????????????"????? ########## | | ??????????????????????????????? ?????# | | ?????????????????????????????????? ??# | | ??????????????????????? ????? "??? ??# # | | ??????????????????????? ????? ??? ? ?# !![[ | | ?????????????????????#? ?#?????????? #### ## ###%[ | | ??????????????????????# ????????####+## # # ##[[[ | | ??????????????????????? ????#???# != | | ?????????????????????## ????#???# !=!%! | | ??????????????????????# ?????##?# =%!! | | ??????????????????????? ##?#???## ###########* | | ????????????????????#?# #?????#?# # =%####/ | | ??????????????? ?????# #?#??#### # !# = | | ??????????????????????# #??#??#?# !/= # | | ??????????????????????# #?#?#?###% =# # | | ?????????????????? ??## ######### !# # | | ????????????????????#?# ## u/ % =#### ## | | ???????????????? ?????# ## ==!####+########### | | ????????# ???? ????## ##=%u*# % ##??## # | | ????????# ###s # %=!# #????# # | | ?????? s %@Y== # "#?####""## | | ??????????????####+### a # # "#?##?# "" | | ?????????????????????##### # "#????### # | | ?????????????????????#???# # T#?#??#?#### | | ???????????????????S?????# # "##????#???? | | ?????????????????????????##/### [ "#?????????? | | ????????????????? ????????# #?# "#?? ??????? | | ???????????????? ?????????# #?# ## ????????? | | ??????????????????????????# ### ##?????????? | | ??????????????????#???????# #?#########??????????? | | ??????????????????????????###????????????????????? | | ?????????????????????? ??????????????????????????? | | ?????????????????????????????????????????????????? | | ??????????????????????? ?????????????????????????? | | ?????????????????????????????????????????????????? | | ?????????????????????????????????????????????????? | | ?????????????????????????????????????????????????? | | ?????????????????????????????????????????????????? | | ?????????????????????????????????????????????????? | | ?????????????????????????????????????????????????? | | ?????????????????????????????????????????????????? | | ?????????????????????????????????????????????????? | | ?????????????????????????????????????????????????? | | ?????????????????????????????????????????????????? | | ?????????????????????????????????????????????????? | +----------------------------------------------------+ Best States ------------- Heat Dissipation 42 Energy Generation 14 Energy Capacity 250 Matter Stores 300 Matter Capacity 300 Sight Range 18 Terrain Scan Range 14 Terrain Scan Density 10 Armor Coverage 150 Evasion (%) 50 Recoil Reduction 2 Item Schematics ----------------- None Robot Schematics ------------------ None Fabricated ------------ Nothing Alien Tech Used ----------------- None Achievements -------------- None Challenges ------------ None Game ------ Seed MatterForceDissipator Manual? 0 Play Time 00:10:00 Cumulative 3.5 hours Start 2024.04.09 @ 02:25:05 End 2024.04.09 @ 02:34:39 Sessions 1 Manual Loads 0 Difficulty Rogue Special Mode None Game No. 11 Rogue 10 Adventurer 1 Explorer 0 Win Type - Total 0 Types 0/0/0/0/0/0/0/0/0 Lore% 2 Gallery% 11 Achievement% 9 Wizard Run 0 Options --------- Layout 1 ASCII 0 Keyboard 0 Movement Arrows Keybinds 0 Fullscreen 1 Font 32/Terminus Map View 50x40 Zoom Use 0% Tactical HUD 0 Map Filters NONE Filters NONE Steam 1 RUN: 123fbdf5-bfed-4499-adb6-93dc8e6ed766